bitfinex/quotes_BTCUSD_20241205
["timestamp","ask_amount","ask_price","bid_price","bid_amount"]
[1733408732922,0.52726204,102500.0,102490.0,0.00035354]
[1733408733129,0.52693809,102500.0,102490.0,0.00035354]
[1733408733354,0.82485731,102500.0,102490.0,0.00035354]
[1733408733983,0.41799705,102500.0,102490.0,0.09792354]
[1733408734195,0.41858344,102500.0,102490.0,0.09792354]
[1733408734415,0.52752448,102500.0,102490.0,0.04792354]
[1733408734625,0.62752448,102500.0,102490.0,0.04792354]
[1733408734837,0.61650266,102500.0,102490.0,0.04792354]
[1733408735067,0.64586592,102500.0,102490.0,0.04792354]
[1733408735287,0.61650266,102500.0,102490.0,0.04792354]
[1733408736678,0.42634,102490.0,102480.0,0.0730672]
[1733408736903,0.53495709,102490.0,102480.0,0.0730672]
[1733408737168,0.66241292,102490.0,102480.0,0.0730672]
[1733408737613,0.52920104,102480.0,102470.0,0.04721413]
[1733408737827,0.97407709,102480.0,102470.0,0.04721413]
[1733408738533,0.86513605,102480.0,102470.0,0.04721413]
[1733408738745,0.76513605,102480.0,102470.0,0.04721413]
[1733408738962,0.83540614,102480.0,102470.0,0.04721413]
[1733408739171,1.04434718,102480.0,102470.0,0.04721413]
[1733408739615,1.06435432,102480.0,102470.0,0.04721413]
[1733408739820,0.95541328,102480.0,102470.0,0.04721413]
[1733408740921,1.06435432,102480.0,102470.0,0.04721413]
[1733408741987,0.95541328,102480.0,102470.0,0.04721413]
[1733408742213,0.85541328,102480.0,102470.0,0.04721413]
[1733408742430,0.96435432,102480.0,102470.0,0.04721413]
[1733408742646,1.06435432,102480.0,102470.0,0.04721413]
[1733408742854,0.71915432,102480.0,102470.0,0.04721413]
[1733408745525,0.61021328,102480.0,102470.0,0.04721413]
[1733408747385,0.53994319,102480.0,102470.0,0.04721413]
[1733408747847,0.55834484,102480.0,102470.0,0.04721413]
[1733408748079,0.43994319,102480.0,102470.0,0.15615517]
[1733408748287,0.43994319,102480.0,102470.0,0.04721413]
[1733408749444,0.29483605,102480.0,102470.0,0.04721413]
[1733408749913,0.29483605,102480.0,102470.0,0.07021413]
[1733408750151,0.37132866,102480.0,102470.0,0.07021413]
[1733408750887,0.29483605,102480.0,102470.0,0.07021413]
[1733408751348,0.41853605,102480.0,102470.0,0.07021413]
[1733408751856,0.76373605,102480.0,102470.0,0.07021413]
[1733408752579,0.86373605,102480.0,102470.0,0.07021413]
[1733408753556,0.51853605,102480.0,102470.0,0.07021413]
[1733408753795,0.61645527,102480.0,102470.0,0.07021413]
[1733408756218,0.72539631,102480.0,102470.0,0.07021413]
[1733408756463,0.62539631,102480.0,102460.0,0.15]
[1733408756699,0.53111635,102470.0,102460.0,0.11096]
[1733408756932,0.421298,102460.0,102450.0,0.00122244]
[1733408757158,0.61889327,102460.0,102450.0,0.00122244]
[1733408758180,0.6194793,102460.0,102450.0,0.00122244]
[1733408758679,0.5194793,102460.0,102450.0,0.00122244]
[1733408759158,0.62842034,102460.0,102450.0,0.00122244]
[1733408759386,0.5194793,102460.0,102450.0,0.00122244]
[1733408760396,0.62842034,102460.0,102450.0,0.00122244]
[1733408761798,0.64828137,102460.0,102450.0,0.00122244]
[1733408762303,0.66712792,102460.0,102450.0,0.00122244]
[1733408762570,0.422617,102450.0,102440.0,1.4e-07]
[1733408762814,0.73504997,102450.0,102440.0,1.4e-07]
[1733408763290,0.62610893,102450.0,102440.0,1.4e-07]
[1733408763748,0.73504997,102450.0,102440.0,1.4e-07]
[1733408763987,0.1,102440.0,102430.0,2.8e-07]
[1733408764215,2.24437389,102440.0,102430.0,2.8e-07]
[1733408764454,2.36407231,102440.0,102430.0,2.8e-07]
[1733408765144,2.25721205,102440.0,102430.0,2.8e-07]
[1733408765402,0.54321205,102440.0,102430.0,2.8e-07]
[1733408765643,0.490566,102420.0,102400.0,0.12411292]
[1733408765871,0.10122068,102410.0,102400.0,0.23305396]
[1733408766093,0.20089673,102410.0,102400.0,0.23305396]
[1733408766338,0.19967605,102410.0,102400.0,0.23305396]
[1733408766570,0.09967605,102410.0,102400.0,0.23305396]
[1733408766821,0.10089676,102410.0,102400.0,0.23305396]
[1733408767016,0.10089676,102410.0,102400.0,0.23323063]
[1733408767569,0.00122071,102410.0,102400.0,0.35174263]
[1733408767781,0.00122071,102410.0,102400.0,0.43404263]
[1733408768239,0.1,102420.0,102410.0,0.0765]
[1733408768490,0.19967605,102420.0,102410.0,0.18544104]
[1733408768947,0.19967605,102420.0,102410.0,0.0765]
[1733408769228,0.39495005,102420.0,102410.0,0.0765]
[1733408770442,0.19967605,102420.0,102410.0,0.18544104]
[1733408770910,0.19967605,102420.0,102410.0,0.10894104]
[1733408771389,0.1,102420.0,102410.0,0.10894104]
[1733408771641,0.10122053,102430.0,102410.0,0.10894104]
[1733408771890,0.39615258,102430.0,102410.0,0.10894104]
[1733408772108,0.295274,102420.0,102410.0,0.10980834]
[1733408772338,0.39495005,102420.0,102410.0,0.10980834]
[1733408772575,0.29495005,102420.0,102410.0,0.20744834]
[1733408773053,0.29495005,102420.0,102410.0,0.0985073]
[1733408773278,0.29495005,102420.0,102410.0,0.20744834]
[1733408773510,0.39495005,102420.0,102410.0,0.20744834]
[1733408773757,0.29495005,102420.0,102410.0,0.20744834]
[1733408774706,0.40495005,102420.0,102410.0,0.20744834]
[1733408774927,0.30495005,102420.0,102410.0,0.20744834]
[1733408775685,0.30495005,102420.0,102410.0,0.0985073]
[1733408777572,0.40495005,102420.0,102410.0,0.0985073]
[1733408777787,0.30495005,102420.0,102410.0,0.0985073]
[1733408778234,0.30495005,102420.0,102410.0,0.11741168]
[1733408778916,0.30495005,102420.0,102410.0,0.22635272]
[1733408779367,0.10967605,102420.0,102410.0,0.22635272]
[1733408779596,0.11089667,102420.0,102410.0,0.22635272]
[1733408779813,0.30617067,102420.0,102410.0,0.22635272]
[1733408780046,0.30495005,102420.0,102410.0,0.11741168]
[1733408781845,0.40495005,102420.0,102410.0,0.22635272]
[1733408782063,0.30495005,102420.0,102410.0,0.22635272]
[1733408782511,0.30495005,102420.0,102410.0,0.06637724]
[1733408782724,0.20967605,102420.0,102410.0,0.06637724]
[1733408782935,0.20967605,102420.0,102410.0,0.26167024]
[1733408783193,0.01,102420.0,102410.0,0.26167024]
[1733408783408,0.01,102420.0,102410.0,0.45801024]
[1733408784261,0.0117354,102420.0,102410.0,0.45801024]
[1733408785819,0.0117354,102420.0,102410.0,0.47466668]
[1733408786041,0.0117354,102420.0,102410.0,0.51723048]
[1733408787175,0.0117354,102420.0,102410.0,0.40828944]
[1733408787420,0.0117354,102420.0,102410.0,0.51723048]
[1733408788573,0.0117354,102420.0,102410.0,0.49323048]
[1733408789222,0.29647545,102430.0,102420.0,0.10894104]
[1733408789442,0.295255,102430.0,102410.0,0.49321948]
[1733408789662,0.295255,102430.0,102420.0,0.20657804]
[1733408789879,0.1,102430.0,102420.0,0.20657804]
[1733408790088,0.10122045,102430.0,102420.0,0.20657804]
[1733408791409,0.47323615,102430.0,102420.0,0.097637]
[1733408791621,0.56763105,102430.0,102420.0,0.097637]
[1733408792498,0.56763105,102430.0,102420.0,0.20657804]
[1733408792750,0.56763105,102430.0,102420.0,0.097637]
[1733408793649,0.56763105,102430.0,102420.0,0.20657804]
[1733408795178,0.37237605,102430.0,102420.0,0.20657804]
[1733408795391,0.34967605,102430.0,102420.0,0.20657804]
[1733408795598,0.34967605,102430.0,102420.0,0.097637]
[1733408796065,0.34967605,102430.0,102420.0,0.20657804]
[1733408796491,0.25,102430.0,102420.0,0.20744554]
[1733408796720,0.151735,102430.0,102420.0,0.20744554]
[1733408796926,0.25295545,102430.0,102420.0,0.20744554]
[1733408797132,0.251735,102430.0,102420.0,0.40271954]
[1733408797797,0.151735,102430.0,102420.0,0.40271954]
[1733408798009,0.15295543,102430.0,102420.0,0.40271954]
[1733408798437,0.25295543,102430.0,102420.0,0.20744554]
[1733408798710,0.251735,102430.0,102420.0,0.20744554]
[1733408798925,0.54666605,102430.0,102420.0,0.0985045]
[1733408799366,0.59436605,102430.0,102420.0,0.0985045]
[1733408799813,0.59436605,102430.0,102420.0,0.2239214]
[1733408801801,0.39911105,102430.0,102420.0,0.2239214]
[1733408802021,0.35141105,102430.0,102420.0,0.2239214]
[1733408802233,0.54666605,102430.0,102420.0,0.2239214]
[1733408802457,0.35141105,102430.0,102420.0,0.2239214]
[1733408802669,0.54666605,102430.0,102420.0,0.2239214]
[1733408803515,0.35141105,102430.0,102420.0,0.2239214]
[1733408803963,0.251735,102430.0,102420.0,0.33286244]
[1733408804177,0.151735,102430.0,102420.0,0.4191954]
[1733408804399,0.25295545,102430.0,102420.0,0.2239214]
[1733408804611,0.44699,102430.0,102420.0,0.2239214]
[1733408805071,0.251735,102430.0,102420.0,0.2239214]
[1733408805752,0.251735,102430.0,102420.0,0.11498036]
[1733408806728,0.251735,102430.0,102420.0,0.31025436]
[1733408806968,0.151735,102430.0,102420.0,0.31025436]
[1733408807189,0.15295544,102430.0,102420.0,0.31025436]
[1733408807411,0.15295544,102430.0,102420.0,0.4191954]
[1733408808161,0.151735,102430.0,102420.0,0.4191954]
[1733408808397,0.15295544,102430.0,102420.0,0.4191954]
[1733408809136,0.08495543,102430.0,102420.0,0.4191954]
[1733408809373,0.001735,102430.0,102420.0,0.87651249]
[1733408811698,0.15,102440.0,102430.0,0.269955]
[1733408811928,0.15,102440.0,102430.0,0.47857209]
[1733408812159,0.15,102440.0,102430.0,0.57620009]
[1733408812870,0.0017346,102460.0,102450.0,0.269917]
[1733408813099,0.0017346,102460.0,102440.0,0.49938704]
[1733408813339,0.0848346,102460.0,102450.0,0.097608]
[1733408814288,0.42929479,102460.0,102450.0,0.097608]
[1733408814975,0.52929479,102460.0,102450.0,0.097608]
[1733408817416,0.42929479,102460.0,102450.0,0.097608]
[1733408819055,0.68067249,102460.0,102450.0,0.097608]
[1733408819296,1.11239955,102460.0,102450.0,0.097608]
[1733408819522,1.34010936,102460.0,102450.0,0.097608]
[1733408819752,1.34010936,102460.0,102400.0,0.05987992]
[1733408819753,0.195276,102420.0,102400.0,0.05987992]
[1733408819981,0.195276,102420.0,102410.0,0.10925102]
[1733408820461,0.466131,102430.0,102410.0,0.10925102]
[1733408820695,0.341436,102440.0,102420.0,0.10894104]
[1733408820928,0.59015805,102440.0,102420.0,0.10894104]
[1733408821169,0.39491205,102440.0,102420.0,0.20750445]
[1733408821616,0.59016205,102440.0,102420.0,0.20750445]
[1733408822074,0.195255,102430.0,102420.0,0.20750445]
[1733408822299,0.195255,102430.0,102420.0,0.09856341]
[1733408822535,0.19647536,102430.0,102420.0,0.09856341]
[1733408823244,0.27417536,102430.0,102420.0,0.09856341]
[1733408823473,0.47263105,102430.0,102420.0,0.09856341]
[1733408824256,0.27737605,102430.0,102420.0,0.09856341]
[1733408824478,0.37263105,102430.0,102420.0,0.09856341]
[1733408824692,0.42203105,102430.0,102420.0,0.09856341]
[1733408824910,0.75189131,102430.0,102420.0,0.09856341]
[1733408825153,0.99917209,102430.0,102420.0,0.09856341]
[1733408825621,1.08571286,102430.0,102420.0,0.02046341]
[1733408825854,1.08571286,102430.0,102380.0,0.00153162]
[1733408825855,0.2,102420.0,102380.0,0.00153162]
[1733408826090,0.2,102420.0,102380.0,0.00164637]
[1733408826091,0.195331,102390.0,102380.0,0.00164637]
[1733408826327,0.296228,102390.0,102380.0,0.00164637]
[1733408826571,0.29500705,102390.0,102380.0,0.00164637]
[1733408826817,0.29500705,102390.0,102380.0,0.09931637]
[1733408827054,0.29500705,102390.0,102380.0,0.09900639]
[1733408827318,0.808677,102400.0,102380.0,0.2245813]
[1733408827542,0.90835305,102400.0,102380.0,0.2245813]
[1733408828714,0.59032405,102400.0,102380.0,0.2245813]
[1733408829161,0.71764804,102400.0,102380.0,0.2245813]
[1733408829434,0.71764804,102400.0,102380.0,0.4199303]
[1733408829435,0.52232104,102400.0,102380.0,0.4199303]
[1733408829691,0.52232104,102400.0,102380.0,0.2245813]
[1733408829941,0.71764804,102400.0,102380.0,0.2245813]
[1733408830682,0.32699704,102400.0,102380.0,0.4199313]
[1733408830890,0.50071399,102410.0,102390.0,0.10894104]
[1733408831121,0.50071399,102410.0,102390.0,0.30426904]
[1733408831122,0.79569504,102410.0,102390.0,0.30426904]
[1733408831346,0.79569204,102410.0,102390.0,0.40193504]
[1733408831576,0.195312,102400.0,102390.0,0.097666]
[1733408832064,0.1965327,102400.0,102390.0,0.097666]
[1733408832309,0.52228404,102410.0,102390.0,0.20660704]
[1733408832533,0.195312,102400.0,102390.0,0.097666]
[1733408832989,0.60418404,102410.0,102390.0,0.097666]
[1733408833211,0.195312,102400.0,102390.0,0.097666]
[1733408833455,0.79949004,102410.0,102390.0,0.097666]
[1733408833706,0.32697904,102410.0,102390.0,0.40193804]
[1733408833928,0.52228004,102410.0,102390.0,0.59725504]
[1733408834150,0.195301,102410.0,102390.0,0.59724504]
[1733408834373,0.22852169,102410.0,102390.0,0.79256604]
[1733408834644,0.390602,102410.0,102390.0,0.59724504]
[1733408834896,0.390603,102410.0,102390.0,0.59724504]
[1733408835124,0.22730099,102410.0,102390.0,0.79256604]
[1733408835345,0.42260399,102410.0,102390.0,0.59724504]
[1733408835572,0.22730099,102410.0,102390.0,0.59724504]
[1733408835786,0.195301,102410.0,102400.0,0.195312]
[1733408836026,0.35608299,102420.0,102400.0,0.40190104]
[1733408836276,0.0012207,102410.0,102400.0,0.097656]
[1733408836508,0.324083,102420.0,102400.0,0.40190004]
[1733408836736,0.03199999,102420.0,102410.0,0.10894104]
[1733408836984,0.47159999,102440.0,102420.0,0.195274]
[1733408837243,0.03322038,102430.0,102410.0,0.59715504]
[1733408837515,0.19647539,102430.0,102420.0,0.097637]
[1733408837760,0.46830107,102430.0,102420.0,0.097637]
[1733408837980,0.46708068,102430.0,102420.0,0.097637]
[1733408838214,0.46708068,102430.0,102420.0,0.09775175]
[1733408840201,0.40983104,102430.0,102420.0,0.09775175]
[1733408841374,0.45703104,102430.0,102420.0,0.09775175]
[1733408841600,0.42503105,102430.0,102420.0,0.09775175]
[1733408843572,0.42676625,102430.0,102420.0,0.09775175]
[1733408850323,0.32866624,102430.0,102420.0,0.11871682]
[1733408850558,0.22899019,102430.0,102420.0,0.11871682]
[1733408850780,0.0017352,102430.0,102420.0,0.42293186]
[1733408851025,0.0017352,102430.0,102420.0,0.11871682]
[1733408851026,0.00295556,102430.0,102420.0,0.11871682]
[1733408851288,0.19821056,102430.0,102420.0,0.11871682]
[1733408851523,0.22899019,102430.0,102420.0,0.11871682]
[1733408854161,0.34596625,102430.0,102420.0,0.11871682]
[1733408859373,0.63340729,102430.0,102420.0,0.11871682]
[1733408860101,0.97860729,102430.0,102420.0,0.11871682]
[1733408860313,0.86966625,102430.0,102420.0,0.11871682]
[1733408860563,0.86966625,102430.0,102420.0,0.09775175]
[1733408860801,0.91157471,102430.0,102420.0,0.09775175]
[1733408861250,0.86966625,102430.0,102420.0,0.09775175]
[1733408861700,0.86966625,102430.0,102420.0,0.09755175]
[1733408862416,0.76966625,102430.0,102420.0,0.09755175]
[1733408862648,0.86966625,102430.0,102420.0,0.09755175]
[1733408863814,0.76966625,102430.0,102420.0,0.09755175]
[1733408864059,0.44388989,102430.0,102420.0,0.09755175]
[1733408864963,0.47060318,102430.0,102420.0,0.09755175]
[1733408865475,0.47060318,102430.0,102420.0,0.11845244]
[1733408866342,0.47060318,102430.0,102420.0,0.09755175]
[1733408866998,0.44388989,102430.0,102420.0,0.09755175]
[1733408869444,0.32866624,102430.0,102420.0,0.09755175]
[1733408870400,0.22899019,102430.0,102420.0,0.29282575]
[1733408870824,0.03373519,102430.0,102420.0,0.29282575]
[1733408871262,0.0017352,102430.0,102420.0,0.40176679]
[1733408871951,0.0017352,102430.0,102420.0,0.10894104]
[1733408872423,0.39348963,102430.0,102410.0,0.17153282]
[1733408872644,0.3922692,102430.0,102410.0,0.28047386]
[1733408872863,0.3922692,102430.0,102410.0,0.47576486]
[1733408873091,0.3922632,102430.0,102410.0,0.47576486]
[1733408873328,0.3922632,102430.0,102410.0,0.28047386]
[1733408873559,0.3922632,102430.0,102410.0,0.47576686]
[1733408873780,0.0017352,102430.0,102420.0,0.30421504]
[1733408874647,0.0017352,102430.0,102420.0,0.38191504]
[1733408875503,0.0017352,102430.0,102420.0,0.10894104]
[1733408875504,0.19821057,102430.0,102420.0,0.10894104]
[1733408875710,0.1969902,102430.0,102410.0,0.74914286]
[1733408876384,0.0017352,102430.0,102410.0,0.94441886]
[1733408876605,0.00295557,102430.0,102410.0,0.94441886]
[1733408876827,0.00295557,102430.0,102420.0,0.10894104]
[1733408877047,0.00295557,102430.0,102410.0,0.65149086]
[1733408877275,0.19821057,102430.0,102420.0,0.097637]
[1733408877519,0.00295557,102430.0,102420.0,0.097637]
[1733408877753,0.0017352,102430.0,102420.0,0.20657804]
[1733408877936,0.00295557,102430.0,102420.0,0.20657804]
[1733408878862,0.19821057,102430.0,102420.0,0.20657804]
[1733408879074,0.0017352,102430.0,102420.0,0.20657804]
[1733408879978,0.0017352,102430.0,102420.0,0.20744554]
[1733408880437,0.0017352,102430.0,102420.0,0.40271954]
[1733408881347,0.0017352,102430.0,102420.0,0.20744554]
[1733408881569,0.0017352,102430.0,102420.0,0.0985045]
[1733408881781,0.1969902,102430.0,102420.0,0.0985045]
[1733408882003,0.0017352,102430.0,102420.0,0.0985045]
[1733408883436,0.42748661,102430.0,102420.0,0.0985045]
[1733408883705,0.54718547,102430.0,102420.0,0.0985045]
[1733408886828,0.65612651,102430.0,102420.0,0.0985045]
[1733408887280,1.00132651,102430.0,102420.0,0.0985045]
[1733408887508,0.89238547,102430.0,102420.0,0.0985045]
[1733408887719,0.99238547,102430.0,102420.0,0.0985045]
[1733408888893,1.01191655,102430.0,102420.0,0.0985045]
[1733408889369,1.09846289,102430.0,102420.0,0.0985045]
[1733408889596,1.01191655,102430.0,102420.0,0.0985045]
[1733408889815,1.09846289,102430.0,102420.0,0.0985045]
[1733408890093,1.01191655,102430.0,102420.0,0.0985045]
[1733408890799,1.12085759,102430.0,102420.0,0.0985045]
[1733408892172,1.02293837,102430.0,102420.0,0.0985045]
[1733408895374,0.81399733,102430.0,102420.0,0.0985045]
[1733408895598,0.22727399,102420.0,102400.0,0.49954804]
[1733408895829,0.52223204,102420.0,102400.0,0.30442082]
[1733408896066,0.03199999,102420.0,102410.0,0.10894104]
[1733408896249,0.03199999,102420.0,102410.0,0.30422504]
[1733408896506,0.05673519,102430.0,102410.0,0.69480204]
[1733408896747,0.05795563,102430.0,102410.0,0.77000204]
[1733408897710,0.25321263,102430.0,102410.0,0.37942504]
[1733408897924,0.25199219,102430.0,102410.0,0.37942504]
[1733408898146,0.05673519,102430.0,102410.0,0.57471004]
[1733408898367,0.05795562,102430.0,102410.0,0.76999504]
[1733408898597,0.05673519,102430.0,102410.0,0.86763104]
[1733408898814,0.0247352,102430.0,102420.0,0.30421504]
[1733408899249,0.0247352,102430.0,102420.0,0.40185204]
[1733408901284,0.0247352,102430.0,102420.0,0.51079308]
[1733408901514,0.0247352,102430.0,102420.0,0.61046913]
[1733408902722,0.0247352,102430.0,102420.0,0.90096914]
[1733408903623,0.0247352,102430.0,102420.0,0.8196789]
[1733408904145,0.71357,102470.0,102440.0,0.390446]
[1733408904246,0.195199,102460.0,102440.0,0.390446]
[1733408904473,0.10089618,102460.0,102450.0,0.10894104]
[1733408904713,0.081,102470.0,102450.0,0.49936504]
[1733408904927,0.08221998,102470.0,102450.0,0.59696104]
[1733408905160,0.08221998,102470.0,102450.0,0.79216404]
[1733408905407,0.08280622,102470.0,102450.0,0.79216404]
[1733408905625,0.00058624,102470.0,102460.0,0.195198]
[1733408905848,0.00058624,102470.0,102460.0,0.30413904]
[1733408906092,0.00058624,102470.0,102460.0,0.195198]
[1733408906303,0.0018062,102470.0,102460.0,0.30413904]
[1733408906523,0.00058624,102470.0,102460.0,0.40173804]
[1733408907186,0.00058624,102470.0,102460.0,0.57811409]
[1733408907422,0.00058624,102470.0,102460.0,0.72811409]
[1733408908975,0.0017378,102480.0,102460.0,1.24149409]
[1733408909211,0.05937539,102510.0,102490.0,0.30407804]
[1733408909446,0.00121945,102510.0,102490.0,0.30407804]
[1733408909667,0.00139121,102510.0,102490.0,0.59677904]
[1733408910136,0.00139121,102510.0,102490.0,0.59677204]
[1733408910362,0.00139121,102510.0,102490.0,0.59676604]
[1733408910600,0.00139121,102510.0,102490.0,0.79189204]
[1733408911047,0.00139121,102510.0,102490.0,0.59676204]
[1733408911293,0.00139121,102510.0,102490.0,0.40163604]
[1733408911511,0.195121,102500.0,102490.0,0.09757]
[1733408911747,0.19634055,102500.0,102490.0,0.09757]
[1733408911956,0.19424055,102500.0,102490.0,0.09757]
[1733408912178,0.2939166,102500.0,102490.0,0.09757]
[1733408912397,0.29269705,102500.0,102490.0,0.09757]
[1733408913593,0.29269705,102500.0,102490.0,0.20651104]
[1733408913823,0.29269705,102500.0,102490.0,0.09757]
[1733408914260,0.193021,102500.0,102490.0,0.09757]
[1733408914484,0.00121961,102500.0,102490.0,0.09757]
[1733408915609,0.19634061,102500.0,102490.0,0.09757]
[1733408916039,0.19634061,102500.0,102490.0,0.0984368]
[1733408916252,0.19807421,102500.0,102490.0,0.0984368]
[1733408916499,0.1968546,102500.0,102490.0,0.0984368]
[1733408917903,0.0017336,102500.0,102490.0,0.0984368]
[1733408918130,0.00295318,102500.0,102490.0,0.0984368]
[1733408918855,0.19807418,102500.0,102490.0,0.0984368]
[1733408919084,0.1968546,102500.0,102490.0,0.0984368]
[1733408919300,0.0017336,102500.0,102490.0,0.0984368]
[1733408919524,0.00295318,102500.0,102490.0,0.20737784]
[1733408919746,0.0017336,102500.0,102490.0,0.40251784]
[1733408922259,0.0017336,102500.0,102490.0,0.0984368]
[1733408922485,0.0017336,102500.0,102490.0,0.0994124]
[1733408923345,0.0017336,102500.0,102490.0,0.2945524]
[1733408923556,0.0017336,102500.0,102490.0,0.2935768]
[1733408924217,0.39038775,102510.0,102490.0,0.2935768]
[1733408925096,0.00017175,102510.0,102500.0,0.30406204]
[1733408925533,0.00139119,102510.0,102500.0,0.097561]
[1733408925729,0.00139119,102510.0,102500.0,0.292682]
[1733408925998,0.00017175,102510.0,102500.0,0.40162304]
[1733408926895,0.0821376,102520.0,102500.0,0.59673304]
[1733408927124,0.0821376,102520.0,102510.0,0.30404304]
[1733408927125,0.08225252,102520.0,102510.0,0.30404304]
[1733408927349,0.00185252,102520.0,102510.0,0.195102]
[1733408927569,0.00185252,102520.0,102510.0,0.40159404]
[1733408927772,0.00185252,102520.0,102510.0,0.20649204]
[1733408927994,0.00185252,102520.0,102510.0,0.40159404]
[1733408928451,0.00185252,102520.0,102510.0,0.51053508]
[1733408928665,0.00185252,102520.0,102510.0,0.40159404]
[1733408929993,0.00185252,102520.0,102510.0,0.50127009]
[1733408930440,0.00185252,102520.0,102510.0,0.69211113]
[1733408930678,0.00185252,102520.0,102510.0,0.58317009]
[1733408930912,0.0017378,102530.0,102510.0,0.94211113]
[1733408931125,0.1517372,102550.0,102540.0,0.195045]
[1733408931349,0.1517372,102550.0,102540.0,0.51357813]
[1733408931565,0.1517372,102550.0,102540.0,0.61012613]
[1733408932699,0.1517372,102550.0,102540.0,0.40150904]
[1733408932918,0.3467632,102550.0,102540.0,0.097523]
[1733408933363,0.14987511,102550.0,102540.0,0.20646404]
[1733408933577,0.0017366,102560.0,102550.0,0.195026]
[1733408933789,0.0017366,102560.0,102550.0,0.30494204]
[1733408933999,0.0017366,102560.0,102550.0,0.40148004]
[1733408934213,0.0017366,102560.0,102550.0,0.50115609]
[1733408934901,0.00191319,102560.0,102550.0,0.50115609]
[1733408935544,0.274879,102580.0,102560.0,0.10894104]
[1733408935777,0.4704485,102580.0,102560.0,0.40242697]
[1733408936076,0.6654295,102580.0,102560.0,0.59743297]
[1733408936292,0.6654335,102580.0,102560.0,0.40242597]
[1733408936719,0.4704485,102580.0,102560.0,0.20741997]
[1733408936933,0.4704485,102580.0,102560.0,0.40242697]
[1733408937163,0.194988,102570.0,102560.0,0.20741997]
[1733408937384,0.194988,102570.0,102560.0,0.40145204]
[1733408937605,0.2754675,102580.0,102560.0,0.79144404]
[1733408937824,0.0804885,102580.0,102570.0,0.30392904]
[1733408938040,0.0005885,102580.0,102570.0,0.30392904]
[1733408938256,0.0005885,102580.0,102570.0,0.20643504]
[1733408938466,0.0005885,102580.0,102570.0,0.40142304]
[1733408939754,0.39165579,102590.0,102570.0,0.59641104]
[1733408939973,0.19681065,102590.0,102570.0,0.59641104]
[1733408940191,0.39177465,102590.0,102570.0,0.40141004]
[1733408940404,0.58674065,102590.0,102570.0,0.40141004]
[1733408940619,0.39177465,102590.0,102570.0,0.59639004]
[1733408940833,0.0017342,102580.0,102570.0,0.59639004]
[1733408941281,0.0017342,102580.0,102570.0,0.292469]
[1733408943736,0.0772342,102580.0,102570.0,0.097494]
[1733408944003,0.2722032,102580.0,102570.0,0.097494]
[1733408944220,0.20420319,102580.0,102570.0,0.097494]
[1733408944653,0.30387924,102580.0,102570.0,0.097494]
[1733408945977,0.20420319,102580.0,102570.0,0.097494]
[1733408946223,0.00923419,102580.0,102570.0,0.097494]
[1733408946438,0.24471065,102590.0,102570.0,0.59639404]
[1733408946655,0.00185165,102590.0,102580.0,0.194969]
[1733408946873,0.19802015,102590.0,102580.0,0.194969]
[1733408947084,0.00185165,102590.0,102580.0,0.292454]
[1733408947553,0.00185165,102590.0,102580.0,0.40139504]
[1733408948692,0.00185165,102590.0,102580.0,0.50107109]
[1733408949376,0.00185165,102590.0,102580.0,0.25335669]
[1733408949595,0.00185165,102590.0,102580.0,0.44832569]
[1733408949821,0.6328482,102620.0,102600.0,0.194931]
[1733408950101,0.53761725,102620.0,102600.0,0.19504586]
[1733408950309,0.2430382,102620.0,102600.0,0.34621643]
[1733408950522,0.4379412,102620.0,102600.0,0.15032486]
[1733408950738,0.19613015,102610.0,102600.0,0.15032486]
[1733408950948,0.2958062,102610.0,102600.0,0.15032486]
[1733408951170,0.29458805,102610.0,102600.0,0.15032486]
[1733408952739,0.37258805,102610.0,102600.0,0.15032486]
[1733408953671,0.57944831,102610.0,102600.0,0.15032486]
[1733408953906,0.62684831,102610.0,102600.0,0.15032486]
[1733408955015,0.52892909,102610.0,102600.0,0.15032486]
[1733408955290,0.41998805,102610.0,102600.0,0.15032486]
[1733408956185,0.41967692,102610.0,102600.0,0.15032486]
[1733408962301,0.41967692,102610.0,102600.0,0.14516116]
[1733408963364,0.41967692,102610.0,102600.0,0.09390127]
[1733408963773,0.41967692,102610.0,102600.0,0.05998454]
[1733408964622,0.19460087,102610.0,102600.0,0.06085074]
[1733408964832,0.19755154,102610.0,102600.0,0.06085074]
[1733408965043,0.0017324,102610.0,102600.0,0.06085074]
[1733408965249,0.0017324,102610.0,102600.0,0.36472278]
[1733408965468,0.0017324,102610.0,102600.0,0.44072278]
[1733408968592,0.0017324,102610.0,102600.0,0.33178174]
[1733408968782,0.0017324,102610.0,102600.0,0.44072278]
[1733408969418,0.0017324,102610.0,102600.0,0.36472278]
[1733408969619,0.0017324,102610.0,102600.0,0.25578174]
[1733408969835,0.34536459,102620.0,102600.0,0.45071274]
[1733408970058,0.34536459,102620.0,102600.0,0.06085074]
[1733408970302,0.54027259,102620.0,102600.0,0.06085074]
[1733408970538,0.34536459,102620.0,102600.0,0.16979178]
[1733408970766,0.6630002,102630.0,102600.0,0.55963078]
[1733408970963,0.19611318,102620.0,102600.0,0.75454878]
[1733408971168,0.19611318,102620.0,102600.0,0.55962778]
[1733408971372,0.19611318,102620.0,102600.0,0.75454978]
[1733408971603,0.19611318,102620.0,102600.0,0.55962778]
[1733408972031,0.194912,102610.0,102600.0,0.06085074]
[1733408972245,0.29458805,102610.0,102600.0,0.06085074]
[1733408972691,0.584714,102620.0,102600.0,0.16979178]
[1733408972938,0.29457105,102620.0,102600.0,0.36472178]
[1733408973150,0.29457105,102620.0,102600.0,0.55964478]
[1733408973384,0.48947605,102620.0,102600.0,0.55964478]
[1733408973599,0.68438105,102620.0,102600.0,0.36471478]
[1733408973833,0.48947605,102620.0,102600.0,0.36471478]
[1733408974043,0.68438205,102620.0,102600.0,0.10894104]
[1733408974323,0.194912,102610.0,102600.0,0.10894104]
[1733408974738,0.68438305,102620.0,102600.0,0.30387204]
[1733408974943,0.68438305,102620.0,102600.0,0.40133204]
[1733408976240,0.194912,102610.0,102600.0,0.20640104]
[1733408976442,0.48947605,102620.0,102600.0,0.20640104]
[1733408976657,0.68438605,102620.0,102600.0,0.40219814]
[1733408976897,0.68611825,102620.0,102600.0,0.40219814]
[1733408977123,0.49120825,102620.0,102600.0,0.40219814]
[1733408977333,0.49120825,102620.0,102600.0,0.59712214]
[1733408977544,0.0017322,102620.0,102610.0,0.10894104]
[1733408977748,0.0017322,102620.0,102610.0,0.30385304]
[1733408977984,0.00295035,102620.0,102610.0,0.30385304]
[1733408978195,0.19784335,102620.0,102610.0,0.10894104]
[1733408978405,0.3915332,102620.0,102600.0,0.48478814]
[1733408978632,0.1966252,102620.0,102600.0,0.67971114]
[1733408978832,0.19784333,102620.0,102600.0,0.67971114]
[1733408979036,0.79284752,102630.0,102610.0,0.194912]
[1733408979285,0.89252357,102630.0,102610.0,0.194912]
[1733408979543,0.89252357,102630.0,102610.0,0.194911]
[1733408980442,0.2146382,102640.0,102620.0,0.10894104]
[1733408980708,0.29454005,102640.0,102620.0,0.30382304]
[1733408980989,0.29454005,102640.0,102620.0,0.59615304]